fUSD/lending_fUSD_20240422
["ID","MTS","AMOUNT","RATE_DAILY","PERIOD"]
[323215687,1713817912160,-1424.13,0.0001452,2]
[323215688,1713817912169,-980.74,0.0001452,2]
[323215689,1713817912178,-7647.7,0.0001452,2]
[323215690,1713817912188,-500.0,0.0001452,2]
[323215691,1713817912197,-500.0,0.0001452,2]
[323215692,1713817912207,-866.39,0.0001452,2]
[323215693,1713817912216,-6333.04,0.0001452,2]
[323215694,1713817912229,-1130.77,0.0001452,2]
[323215695,1713817912239,-1043.08,0.0001452,2]
[323215696,1713817912250,-500.0,0.0001452,2]
[323215697,1713817912260,-4957.21,0.0001452,2]
[323215698,1713817912269,-500.0,0.0001452,2]
[323215699,1713817912279,-972.86,0.0001452,2]
[323215700,1713817912288,-500.0,0.0001452,2]
[323215701,1713817912298,-1902.61,0.0001452,2]
[323215702,1713817912307,-17087.41,0.0001452,2]
[323215703,1713817912318,-2426.59,0.0001452,2]
[323215704,1713817912327,-4288.29,0.0001452,2]
[323215705,1713817912336,-1173.49,0.0001452,2]
[323215706,1713817912345,-8918.06,0.0001452,2]
[323215707,1713817912355,-8646.75,0.0001452,2]
[323215708,1713817912364,-500.0,0.0001452,2]
[323215709,1713817912373,-5848.77,0.0001452,2]
[323215710,1713817912383,-500.0,0.0001452,2]
[323215711,1713817912392,-663.73,0.0001452,2]
[323215712,1713817912401,-14690.22,0.0001452,2]
[323215713,1713817912411,-1312.73,0.0001452,2]
[323215714,1713817912421,-506.74,0.0001452,2]
[323215715,1713817912430,-2234.61,0.0001452,2]
[323215716,1713817912439,-648.66,0.0001452,2]
[323215717,1713817912449,-500.0,0.0001452,2]
[323215718,1713817912458,-500.0,0.0001452,2]
[323215719,1713817912467,-10938.94,0.0001452,2]
[323215720,1713817912477,-500.0,0.0001452,2]
[323215721,1713817912486,-512.54250016,0.0001452,2]
[323215722,1713817912497,-1590.37,0.0001452,2]
[323215723,1713817912507,-1962.25,0.0001452,2]
[323215724,1713817912516,-500.0,0.0001452,2]
[323215725,1713817912525,-2886.61,0.0001452,2]
[323215726,1713817912535,-579.41,0.0001452,2]
[323215727,1713817912544,-1997.87,0.0001452,2]
[323215728,1713817912554,-500.0,0.0001452,2]
[323215729,1713817912564,-53885.3,0.0001452,2]
[323215730,1713817912575,-1244.34,0.0001452,2]
[323215731,1713817912584,-4051.64,0.0001452,2]
[323215732,1713817912593,-7669.72,0.0001452,2]
[323215733,1713817912602,-500.0,0.0001452,2]
[323215734,1713817912612,-500.0,0.0001452,2]
[323215735,1713817912622,-2236.17,0.0001452,2]
[323215736,1713817912631,-2521.35,0.0001452,2]
[323215737,1713817912640,-500.0,0.0001452,2]
[323215738,1713817912649,-500.0,0.0001452,2]
[323215739,1713817912659,-500.0,0.0001452,2]
[323215740,1713817912668,-1645.21,0.0001452,2]
[323215741,1713817912678,-1544.16,0.0001452,2]
[323215742,1713817912687,-500.0,0.0001452,2]
[323215743,1713817912696,-1510.42,0.0001452,2]
[323215744,1713817912706,-1343.13,0.0001452,2]
[323215745,1713817912716,-500.0,0.0001452,2]
[323215746,1713817912725,-500.0,0.0001452,2]
[323215747,1713817912736,-500.0,0.0001452,2]
[323215748,1713817912746,-1028.46,0.0001452,2]
[323215749,1713817912757,-500.0,0.0001452,2]
[323215750,1713817912767,-5067.75,0.0001452,2]
[323215751,1713817912776,-803.65,0.0001452,2]
[323215752,1713817912786,-754.93,0.0001452,2]
[323215753,1713817912795,-26471.53,0.0001452,2]
[323215754,1713817912805,-500.0,0.0001452,2]
[323215755,1713817912815,-1051.95,0.0001452,2]
[323215756,1713817912824,-1582.45,0.0001452,2]
[323215757,1713817912834,-11812.41,0.0001452,2]
[323215758,1713817912845,-1564.41,0.0001452,2]
[323215759,1713817912854,-1393.84,0.0001452,2]
[323215760,1713817912867,-500.0,0.0001452,2]
[323215761,1713817912877,-807.31,0.0001452,2]
[323215762,1713817912886,-3864.45,0.0001452,2]
[323215763,1713817912895,-3718.52,0.0001452,2]
[323215764,1713817912906,-500.0,0.0001452,2]
[323215765,1713817912915,-500.0,0.0001452,2]
[323215766,1713817912924,-5811.41,0.0001452,2]
[323215767,1713817912933,-500.0,0.0001452,2]
[323215768,1713817912944,-6037.29,0.0001452,2]
[323215769,1713817912954,-1502.85,0.0001452,2]
[323215770,1713817912964,-2889.09,0.0001452,2]
[323215771,1713817912973,-6389.88,0.0001452,2]
[323215772,1713817912984,-669.89,0.0001452,2]
[323215773,1713817912994,-500.0,0.0001452,2]
[323215774,1713817913003,-500.0,0.0001452,2]
[323215775,1713817913013,-500.0,0.0001452,2]
[323215776,1713817913022,-1991.04,0.0001452,2]
[323215777,1713817913033,-5057.75,0.0001452,2]
[323215778,1713817913042,-500.0,0.0001452,2]
[323215779,1713817913052,-2095.61,0.0001452,2]
[323215780,1713817913062,-2149.82,0.0001452,2]
[323215781,1713817913071,-500.0,0.0001452,2]
[323215782,1713817913081,-610.24,0.0001452,2]
[323215783,1713817913091,-2535.93,0.0001452,2]
[323215784,1713817913100,-500.0,0.0001452,2]
[323215785,1713817913110,-558.4,0.0001452,2]
[323215786,1713817913119,-500.0,0.0001452,2]
[323215787,1713817913132,-9434.59,0.0001452,2]
[323215788,1713817913143,-1851.7,0.0001452,2]
[323215789,1713817913153,-6735.46,0.0001452,2]
[323215790,1713817913162,-1148.52,0.0001452,2]
[323215791,1713817913171,-500.0,0.0001452,2]
[323215792,1713817913180,-2751.02,0.0001452,2]
[323215793,1713817913190,-500.0,0.0001452,2]
[323215794,1713817913199,-2872.2,0.0001452,2]
[323215795,1713817913208,-500.0,0.0001452,2]
[323215796,1713817913218,-560.07,0.0001452,2]
[323215797,1713817913228,-4572.48,0.0001452,2]
[323215798,1713817913237,-2848.87,0.0001452,2]
[323215799,1713817913247,-500.0,0.0001452,2]
[323215800,1713817913257,-12108.08,0.0001452,2]
[323215801,1713817913267,-4162.92,0.0001452,2]
[323215802,1713817913276,-2605.69,0.0001452,2]
[323215803,1713817913286,-505.78,0.0001452,2]
[323215804,1713817913295,-500.0,0.0001452,2]
[323215805,1713817913304,-500.0,0.0001452,2]
[323215806,1713817913313,-500.0,0.0001452,2]
[323215807,1713817913322,-500.0,0.0001452,2]
[323215808,1713817913332,-1139.18,0.0001452,2]
[323215809,1713817913341,-2445.43,0.0001452,2]
[323215810,1713817913350,-500.0,0.0001452,2]
[323215811,1713817913359,-4970.85,0.0001452,2]
[323215812,1713817913368,-500.0,0.0001452,2]
[323215813,1713817913378,-342.6239025,0.0001452,2]
[323215814,1713817913387,-5993.52,0.0001452,2]
[323215815,1713817913395,-4558.05,0.0001452,2]
[323215816,1713817913405,-2320.73,0.0001452,2]
[323215817,1713817913414,-38504.87,0.0001452,2]
[323215818,1713817913423,-500.0,0.0001452,2]
[323215819,1713817913433,-2509.82,0.0001452,2]
[323215820,1713817913442,-198.38394436,0.0001452,2]
[323215821,1713817913452,-4258.45,0.0001452,2]
[323215822,1713817913461,-782.97,0.0001452,2]
[323215823,1713817913470,-500.0,0.0001452,2]
[323215824,1713817913480,-1377.87,0.0001452,2]
[323215825,1713817913489,-500.0,0.0001452,2]
[323215826,1713817913500,-500.0,0.0001452,2]
[323215827,1713817913510,-844.44,0.0001452,2]
[323215828,1713817913519,-4269.95,0.0001452,2]
[323215829,1713817913528,-500.0,0.0001452,2]
[323215830,1713817913538,-1194.19,0.0001452,2]
[323215831,1713817913547,-1360.06,0.0001452,2]
[323215832,1713817913557,-535.38,0.0001452,2]
[323215833,1713817913566,-1464.57,0.0001452,2]
[323215834,1713817913576,-500.0,0.0001452,2]
[323215835,1713817913585,-519.11,0.0001452,2]
[323215836,1713817913595,-2389.58,0.0001452,2]
[323215837,1713817913604,-4846.13,0.0001452,2]
[323215838,1713817913613,-4078.34,0.0001452,2]
[323215839,1713817913622,-416.72621336,0.0001452,2]
[323215840,1713817913631,-2486.12,0.0001452,2]
[323215841,1713817913640,-1059.02,0.0001452,2]
[323215842,1713817913649,-500.0,0.0001452,2]
[323215843,1713817913659,-386.39885432,0.0001452,2]
[323215844,1713817913668,-500.0,0.0001452,2]
[323215845,1713817913677,-9091.85,0.0001452,2]
[323215846,1713817913686,-5188.48,0.0001452,2]
[323215847,1713817913696,-500.0,0.0001452,2]
[323215848,1713817913705,-1379.16,0.0001452,2]
[323215849,1713817913715,-3772.2,0.0001452,2]
[323215850,1713817913723,-3845.3,0.0001452,2]
[323215851,1713817913733,-500.0,0.0001452,2]
[323215852,1713817913742,-2377.01,0.0001452,2]
[323215853,1713817913752,-3089.82,0.0001452,2]
[323215854,1713817913761,-500.0,0.0001452,2]
[323215855,1713817913770,-500.0,0.0001452,2]
[323215856,1713817913779,-622.59250558,0.0001452,2]
[323215857,1713817913788,-500.0,0.0001452,2]
[323215858,1713817913798,-500.0,0.0001452,2]
[323215859,1713817913807,-11616.79,0.0001452,2]
[323215860,1713817913816,-500.0,0.0001452,2]
[323215861,1713817913826,-500.0,0.0001452,2]
[323215862,1713817913835,-1036.73,0.0001452,2]
[323215863,1713817913844,-894.91,0.0001452,2]
[323215864,1713817913857,-519.63,0.0001452,2]
[323215865,1713817913965,-500.0,0.0001452,2]
[323215866,1713817913974,-500.0,0.0001452,2]
[323215867,1713817913984,-3283.29,0.0001452,2]
[323215868,1713817913993,-574.54,0.0001452,2]
[323215869,1713817914002,-230.8802121,0.0001452,2]
[323215870,1713817914011,-6142.2,0.0001452,2]
[323215871,1713817914021,-500.0,0.0001452,2]
[323215872,1713817914031,-500.0,0.0001452,2]
[323215873,1713817914040,-7530.97,0.0001452,2]
[323215874,1713817914049,-3119.61,0.0001452,2]
[323215875,1713817914058,-1052.32,0.0001452,2]
[323215876,1713817914067,-8074.97,0.0001452,2]
[323215877,1713817914078,-1615.52,0.0001452,2]
[323215878,1713817914088,-500.0,0.0001452,2]
[323215879,1713817914097,-500.0,0.0001452,2]
[323215880,1713817914106,-1654.01,0.0001452,2]
[323215881,1713817914115,-2299.35,0.0001452,2]
[323215882,1713817914124,-4170.98,0.0001452,2]
[323215883,1713817914134,-500.0,0.0001452,2]
[323215884,1713817914143,-841.29,0.0001452,2]
[323215885,1713817914153,-9718.3,0.0001452,2]
[323215886,1713817914162,-1294.69,0.0001452,2]
[323215887,1713817914172,-580.64,0.0001452,2]
[323215888,1713817914182,-500.0,0.0001452,2]
[323215889,1713817914192,-500.0,0.0001452,2]
[323215890,1713817914201,-2541.75,0.0001452,2]
[323215891,1713817914211,-500.0,0.0001452,2]
[323215892,1713817914221,-500.0,0.0001452,2]
[323215893,1713817914230,-500.0,0.0001452,2]
[323215894,1713817914239,-555.29,0.0001452,2]
[323215895,1713817914249,-2729.9,0.0001452,2]
[323215896,1713817914258,-2620.59,0.0001452,2]
[323215897,1713817914267,-1646.2,0.0001452,2]
[323215898,1713817914276,-3612.79,0.0001452,2]
[323215899,1713817914286,-500.0,0.0001452,2]
[323215900,1713817914295,-3159.44,0.0001452,2]
[323215901,1713817914304,-500.0,0.0001452,2]
[323215902,1713817914314,-500.0,0.0001452,2]
[323215903,1713817914323,-5252.04,0.0001452,2]
[323215904,1713817914332,-500.0,0.0001452,2]
[323215905,1713817914341,-500.0,0.0001452,2]
[323215906,1713817914350,-500.0,0.0001452,2]
[323215907,1713817914360,-500.0,0.0001452,2]
[323215908,1713817914370,-500.0,0.0001452,2]
[323215909,1713817914379,-500.0,0.0001452,2]
[323215910,1713817914388,-500.0,0.0001452,2]
[323215911,1713817914398,-500.0,0.0001452,2]
[323215912,1713817914407,-1523.59,0.0001452,2]
[323215913,1713817914417,-608.44,0.0001452,2]
[323215914,1713817914427,-13095.85,0.0001452,2]
[323215915,1713817914436,-5833.37,0.0001452,2]
[323215916,1713817914446,-6897.16,0.0001452,2]
[323215917,1713817914456,-389.42509538,0.0001452,2]
[323215918,1713817914465,-500.0,0.0001452,2]
[323215919,1713817914476,-6152.13,0.0001452,2]
[323215920,1713817914486,-3299.3,0.0001452,2]
[323215921,1713817914497,-1238.36,0.0001452,2]
[323215922,1713817914506,-13435.6,0.0001452,2]
[323215923,1713817914515,-500.0,0.0001452,2]
[323215924,1713817914525,-500.0,0.0001452,2]
[323215925,1713817914534,-3819.44,0.0001452,2]
[323215926,1713817914545,-943.08,0.0001452,2]
[323215927,1713817914554,-780.85,0.0001452,2]
[323215928,1713817914565,-500.0,0.0001452,2]
[323215929,1713817914576,-500.0,0.0001452,2]
[323215930,1713817914586,-500.0,0.0001452,2]
[323215931,1713817914596,-1406.96,0.0001452,2]
[323215932,1713817914607,-500.0,0.0001452,2]
[323215933,1713817914618,-769.83,0.0001452,2]
[323215934,1713817914628,-500.0,0.0001452,2]
[323215935,1713817914638,-500.0,0.0001452,2]
[323215936,1713817914647,-722.61,0.0001452,2]
[323215937,1713817914656,-930.5,0.0001452,2]
[323215938,1713817914665,-500.0,0.0001452,2]
[323215939,1713817914675,-2367.11,0.0001452,2]
[323215940,1713817914685,-7256.26,0.0001452,2]
[323215941,1713817914694,-1025.63,0.0001452,2]
[323215942,1713817914704,-500.0,0.0001452,2]
[323215943,1713817914713,-10754.04,0.0001452,2]
[323215944,1713817914723,-500.0,0.0001452,2]
[323215945,1713817914732,-500.0,0.0001452,2]
[323215946,1713817914742,-634.73,0.0001452,2]
[323215947,1713817914752,-500.0,0.0001452,2]
[323215948,1713817914761,-500.0,0.0001452,2]
[323215949,1713817914770,-2911.37,0.0001452,2]
[323215950,1713817914780,-530.36,0.0001452,2]
[323215951,1713817914789,-6189.49,0.0001452,2]
[323215952,1713817914798,-500.0,0.0001452,2]
[323215953,1713817914807,-500.0,0.0001452,2]
[323215954,1713817914817,-943.08,0.0001452,2]
[323215955,1713817914826,-4556.59,0.0001452,2]
[323215956,1713817914836,-1833.33,0.0001452,2]
[323215957,1713817914846,-523.92,0.0001452,2]
[323215958,1713817914857,-1487.75,0.0001452,2]
[323215959,1713817914868,-664.1,0.0001452,2]
[323215960,1713817914877,-1392.71,0.0001452,2]
[323215961,1713817914888,-500.0,0.0001452,2]
[323215962,1713817914899,-4694.74,0.0001452,2]
[323215963,1713817914909,-1874.89,0.0001452,2]
[323215964,1713817914919,-500.0,0.0001452,2]
[323215965,1713817914929,-1392.18,0.0001452,2]
[323215966,1713817914940,-500.0,0.0001452,2]
[323215967,1713817914950,-819.7,0.0001452,2]
[323215968,1713817914960,-3597.55,0.0001452,2]
[323215969,1713817914969,-507.52845869,0.0001452,2]
[323215970,1713817914980,-1514.8,0.0001452,2]
[323215971,1713817914989,-806.58,0.0001452,2]
[323215972,1713817915000,-3150.13,0.0001452,2]
[323215973,1713817915009,-500.0,0.0001452,2]
[323215974,1713817915019,-500.0,0.0001452,2]
[323215975,1713817915029,-702.44,0.0001452,2]
[323215976,1713817915038,-500.0,0.0001452,2]
[323215977,1713817915048,-1715.22,0.0001452,2]
[323215978,1713817915057,-1604.37,0.0001452,2]
[323215979,1713817915066,-1853.0,0.0001452,2]
[323215980,1713817915076,-500.0,0.0001452,2]
[323215981,1713817915086,-1240.407864,0.00014521,2]
[323215982,1713817915095,-583.52,0.00014591,2]
[323215983,1713817915104,-1001.162306,0.00014666,2]
[323215984,1713817915114,-1354.090196,0.00014666,2]
[323215985,1713817915123,-333.720769,0.00014666,2]
[323215986,1713817915133,-193.530824,0.00014666,2]
[323215987,1713817915142,-1060.271034,0.00014666,2]
[323215988,1713817915152,-375.581729,0.00014666,2]
[323215989,1713817915162,-211.520006,0.00014666,2]
[323215990,1713817915172,-242.262789,0.00014666,2]
[323215991,1713817915181,-250.38782,0.00014666,2]
[323215992,1713817915191,-4265.685689,0.00014666,2]
[323215993,1713817915201,-921.40352,0.00014666,2]
[323215994,1713817915210,-769.489311,0.00014666,2]
[323215995,1713817915220,-1727.953782,0.00014666,2]
[323215996,1713817915229,-18015.24794334,0.000147,2]
[323215997,1713817915239,-150.260719,0.00014726,2]
[323215998,1713817915249,-20000.0,0.00014751,2]
[323215999,1713817915259,-4701.3612605,0.00014784,2]
[323216000,1713817915268,-1000511.10259,0.00014786,2]
[323216001,1713817915277,-1058.97,0.00014794,2]
[323216002,1713817915286,-500.0,0.00014794,2]
[323216003,1713817915296,-500.0,0.00014794,2]
[323216004,1713817915305,-500.0,0.00014794,2]
[323216005,1713817915314,-500.0,0.00014794,2]
[323216006,1713817915323,-500.0,0.00014794,2]
[323216007,1713817915333,-333.95317467,0.00014794,2]
[323216008,1713817915342,-500.0,0.00014794,2]
[323216009,1713817915351,-483.48743007,0.00014794,2]
[323216010,1713817915361,-500.0,0.00014794,2]
[323216011,1713817915370,-500.0,0.00014794,2]
[323216012,1713817915379,-512.10131565,0.00014794,2]
[323216013,1713817915388,-622.21434787,0.00014794,2]
[323216014,1713817915397,-500.0,0.00014794,2]
[323216015,1713817915407,-500.0,0.00014794,2]
[323216016,1713817915416,-500.0,0.00014794,2]
[323216017,1713817915425,-500.0,0.00014794,2]
[323216018,1713817915435,-501.09925056,0.00014794,2]
[323216019,1713817915444,-186.65069782,0.00014794,2]
[323216020,1713817915454,-500.0,0.00014794,2]
[323216021,1713817915463,-500.0,0.00014794,2]
[323216022,1713817915472,-500.0,0.00014794,2]
[323216023,1713817915481,-340.19136466,0.00014794,2]
[323216024,1713817915490,-500.0,0.00014794,2]
[323216025,1713817915500,-500.0,0.00014794,2]
[323216026,1713817915509,-500.0,0.00014794,2]
[323216027,1713817915518,-522.98286041,0.00014794,2]
[323216028,1713817915527,-500.0,0.00014794,2]
[323216029,1713817915536,-500.0,0.00014794,2]
[323216030,1713817915545,-613.72,0.00014794,2]
[323216031,1713817915555,-500.0,0.00014794,2]
[323216032,1713817915564,-540.41,0.00014794,2]
[323216033,1713817915574,-500.0,0.00014794,2]
[323216034,1713817915583,-500.0,0.00014794,2]
[323216035,1713817915592,-500.0,0.00014794,2]
[323216036,1713817915601,-500.0,0.00014794,2]
[323216037,1713817915610,-500.0,0.00014794,2]
[323216038,1713817915619,-500.0,0.00014794,2]
[323216039,1713817915628,-500.0,0.00014794,2]
[323216040,1713817915637,-500.0,0.00014794,2]
[323216041,1713817915646,-500.0,0.00014794,2]
[323216042,1713817915655,-500.0,0.00014794,2]
[323216043,1713817915664,-501.69002176,0.00014794,2]
[323216044,1713817915673,-500.0,0.00014794,2]
[323216045,1713817915682,-500.0,0.00014794,2]
[323216046,1713817915691,-1669.03,0.00014794,2]
[323216047,1713817915700,-500.0,0.00014794,2]
[323216048,1713817915710,-1371.14,0.00014794,2]
[323216049,1713817915718,-500.0,0.00014794,2]
[323216050,1713817915728,-500.0,0.00014794,2]
[323216051,1713817915737,-500.0,0.00014794,2]
[323216052,1713817915746,-500.0,0.00014794,2]
[323216053,1713817915755,-500.0,0.00014794,2]
[323216054,1713817915766,-500.0,0.00014794,2]
[323216055,1713817915775,-500.0,0.00014794,2]
[323216056,1713817915785,-500.0,0.00014794,2]
[323216057,1713817915794,-500.0,0.00014794,2]
[323216058,1713817915803,-776.94,0.00014794,2]
[323216059,1713817915812,-500.0,0.00014794,2]
[323216060,1713817915822,-587.95,0.00014794,2]
[323216061,1713817915831,-500.0,0.00014794,2]
[323216062,1713817915840,-1126.73,0.00014794,2]
[323216063,1713817915849,-500.0,0.00014794,2]
[323216064,1713817915858,-1027.81,0.00014794,2]
[323216065,1713817915871,-500.0,0.00014794,2]
[323216066,1713817915881,-500.0,0.00014794,2]
[323216067,1713817915890,-895.63,0.00014794,2]
[323216068,1713817915900,-500.0,0.00014794,2]
[323216069,1713817915910,-500.0,0.00014794,2]
[323216070,1713817915919,-500.0,0.00014794,2]
[323216071,1713817915928,-500.0,0.00014794,2]
[323216072,1713817915937,-560.73,0.00014794,2]
[323216073,1713817915946,-500.0,0.00014794,2]
[323216074,1713817915956,-500.0,0.00014794,2]
[323216075,1713817915965,-500.0,0.00014794,2]
[323216076,1713817915974,-541.08,0.00014794,2]
[323216077,1713817915983,-500.0,0.00014794,2]
[323216078,1713817915992,-706.11,0.00014794,2]
[323216079,1713817916002,-629.02,0.00014794,2]
[323216080,1713817916011,-584.95,0.00014794,2]
[323216081,1713817916020,-500.0,0.00014794,2]
[323216082,1713817916030,-1117.61,0.00014794,2]
[323216083,1713817916039,-500.0,0.00014794,2]
[323216084,1713817916048,-1070.74,0.00014794,2]
[323216085,1713817916057,-500.0,0.00014794,2]
[323216086,1713817916066,-500.0,0.00014794,2]
[323216087,1713817916075,-1292.86,0.00014794,2]
[323216088,1713817916085,-500.0,0.00014794,2]
[323216089,1713817916094,-500.0,0.00014794,2]
[323216090,1713817916103,-500.0,0.00014794,2]
[323216091,1713817916112,-1409.26,0.00014794,2]
[323216092,1713817916122,-895.28,0.00014794,2]
[323216093,1713817916130,-627.63,0.00014794,2]
[323216094,1713817916140,-1508.56,0.00014794,2]
[323216095,1713817916149,-500.0,0.00014794,2]
[323216096,1713817916160,-500.0,0.00014794,2]
[323216097,1713817916170,-500.0,0.00014794,2]
[323216098,1713817916179,-632.96,0.00014794,2]
[323216099,1713817916190,-1031.2,0.00014794,2]
[323216100,1713817916200,-500.0,0.00014794,2]
[323216101,1713817916210,-500.0,0.00014794,2]
[323216102,1713817916219,-500.0,0.00014794,2]
[323216103,1713817916230,-500.0,0.00014794,2]
[323216104,1713817916240,-500.0,0.00014794,2]
[323216105,1713817916251,-718.9,0.00014794,2]
[323216106,1713817916260,-969.56,0.00014794,2]
[323216107,1713817916270,-500.0,0.00014794,2]
[323216108,1713817916280,-500.0,0.00014794,2]
[323216109,1713817916289,-500.0,0.00014794,2]
[323216110,1713817916299,-500.0,0.00014794,2]
[323216111,1713817916308,-500.0,0.00014794,2]
[323216112,1713817916317,-1375.45,0.00014794,2]
[323216113,1713817916327,-643.12,0.00014794,2]
[323216114,1713817916336,-1338.67,0.00014794,2]
[323216115,1713817916345,-1299.86,0.00014794,2]
[323216116,1713817916354,-1086.66,0.00014794,2]
[323216117,1713817916364,-1120.16,0.00014794,2]
[323216118,1713817916373,-960.06,0.00014794,2]
[323216119,1713817916382,-500.0,0.00014794,2]
[323216120,1713817916392,-534.21,0.00014794,2]
[323216121,1713817916401,-753.19,0.00014794,2]
[323216122,1713817916410,-500.0,0.00014794,2]
[323216123,1713817916420,-500.0,0.00014794,2]
[323216124,1713817916429,-500.0,0.00014794,2]
[323216125,1713817916439,-500.0,0.00014794,2]
[323216126,1713817916448,-500.0,0.00014794,2]
[323216127,1713817916458,-811.84,0.00014794,2]
[323216128,1713817916467,-546.54,0.00014794,2]
[323216129,1713817916476,-1092.53,0.00014794,2]
[323216130,1713817916485,-500.0,0.00014794,2]
[323216131,1713817916496,-1749.53,0.00014794,2]
[323216132,1713817916505,-500.0,0.00014794,2]
[323216133,1713817916514,-500.0,0.00014794,2]
[323216134,1713817916524,-500.0,0.00014794,2]
[323216135,1713817916533,-500.0,0.00014794,2]
[323216136,1713817916543,-500.0,0.00014794,2]
[323216137,1713817916552,-500.0,0.00014794,2]
[323216138,1713817916561,-1083.17,0.00014794,2]
[323216139,1713817916571,-500.0,0.00014794,2]
[323216140,1713817916580,-500.0,0.00014794,2]
[323216141,1713817916590,-500.0,0.00014794,2]
[323216142,1713817916600,-500.0,0.00014794,2]
[323216143,1713817916610,-1474.11,0.00014794,2]
[323216144,1713817916620,-1939.69,0.00014794,2]
[323216145,1713817916629,-1150.37,0.00014794,2]
[323216146,1713817916639,-500.0,0.00014794,2]
[323216147,1713817916648,-1191.57,0.00014794,2]
[323216148,1713817916660,-543.71936892,0.00014794,2]
[323216149,1713817916670,-500.0,0.00014794,2]
[323216150,1713817916679,-500.0,0.00014794,2]
[323216151,1713817916689,-873.37,0.00014794,2]
[323216152,1713817916697,-500.0,0.00014794,2]
[323216153,1713817916707,-500.0,0.00014794,2]
[323216154,1713817916717,-553.93317571,0.00014794,2]
[323216155,1713817916727,-548.01,0.00014794,2]
[323216156,1713817916737,-860.95,0.00014794,2]
[323216157,1713817916746,-1713.21,0.00014794,2]
[323216158,1713817916756,-778.64,0.00014794,2]
[323216159,1713817916766,-583.38,0.00014794,2]
[323216160,1713817916775,-500.0,0.00014794,2]
[323216161,1713817916785,-983.83,0.00014794,2]
[323216162,1713817916794,-500.0,0.00014794,2]
[323216163,1713817916805,-500.0,0.00014794,2]
[323216164,1713817916816,-848.86,0.00014794,2]
[323216165,1713817916826,-500.0,0.00014794,2]
[323216166,1713817916837,-1645.42,0.00014794,2]
[323216167,1713817916847,-991.23,0.00014794,2]
[323216168,1713817916863,-650.08,0.00014794,2]
[323216169,1713817916873,-335.78255705,0.00014794,2]
[323216170,1713817916883,-919.27,0.00014794,2]
[323216171,1713817916893,-849.94,0.00014794,2]
[323216172,1713817916903,-965.68,0.00014794,2]
[323216173,1713817916915,-500.0,0.00014794,2]
[323216174,1713817916925,-648.35,0.00014794,2]
[323216175,1713817916935,-500.0,0.00014794,2]
[323216176,1713817916946,-653.61,0.00014794,2]
[323216177,1713817916957,-849.99,0.00014794,2]
[323216178,1713817916967,-500.0,0.00014794,2]
[323216179,1713817916977,-872.51,0.00014794,2]
[323216180,1713817916987,-883.24,0.00014794,2]
[323216181,1713817916996,-500.0,0.00014794,2]
[323216182,1713817917006,-1446.77,0.00014794,2]
[323216183,1713817917015,-668.79,0.00014794,2]
[323216184,1713817917025,-500.0,0.00014794,2]
[323216185,1713817917035,-500.0,0.00014794,2]
[323216186,1713817917046,-1711.08,0.00014794,2]